fUST/lending_fUST_20250906
["ID","MTS","AMOUNT","RATE_DAILY","PERIOD"]
[383858272,1757146254580,-978.257,0.00014185,2]
[383858274,1757146254590,-634.0,0.00014185,2]
[383858276,1757146254599,-2154.0,0.00014185,2]
[383858278,1757146254609,-447.56591919,0.00014207,2]
[383858280,1757146254619,-1000.87818574,0.00014221,2]
[383858282,1757146254630,-512.6960186,0.00014221,2]
[383858284,1757146254639,-1000.0,0.00014221,2]
[383858286,1757146254650,-316.29247482,0.00014221,2]
[383858288,1757146254661,-400.72478266,0.00014221,2]
[383858290,1757146254678,-521.33749465,0.00014221,2]
[383858292,1757146254689,-1000.0,0.00014221,2]
[383858294,1757146254699,-1000.0,0.00014221,2]
[383858296,1757146254709,-1001.92805115,0.00014221,2]
[383858298,1757146254719,-502.29795094,0.00014221,2]
[383858300,1757146254729,-1000.0,0.00014221,2]
[383858302,1757146254751,-1000.0,0.00014221,2]
[383858304,1757146254761,-1000.0,0.00014221,2]
[383858306,1757146254771,-501.52711983,0.00014221,2]
[383858308,1757146254782,-1000.0,0.00014221,2]
[383858310,1757146254792,-1000.0,0.00014221,2]
[383858312,1757146254803,-1000.0,0.00014221,2]
[383858314,1757146254814,-503.0665566,0.00014221,2]
[383858316,1757146254824,-1000.0,0.00014221,2]
[383858318,1757146254834,-500.73139972,0.00014221,2]
[383858320,1757146254849,-700.19023901,0.00014221,2]
[383858322,1757146254859,-1000.0,0.00014221,2]
[383858324,1757146254869,-447.97026484,0.00014221,2]
[383858326,1757146254879,-1004.02424192,0.00014221,2]
[383858328,1757146254888,-500.0,0.00014221,2]
[383858330,1757146254898,-501.02794123,0.00014221,2]
[383858332,1757146254908,-500.0,0.00014221,2]
[383858334,1757146254917,-501.67970441,0.00014221,2]
[383858336,1757146254927,-500.95843424,0.00014221,2]
[383858338,1757146254936,-1000.0,0.00014221,2]
[383858340,1757146254946,-504.62796832,0.00014221,2]
[383858342,1757146254958,-500.0,0.00014221,2]
[383858344,1757146254967,-500.67600698,0.00014221,2]
[383858346,1757146254977,-1000.0,0.00014221,2]
[383858348,1757146254986,-480.0,0.00014246,2]
[383858350,1757146254995,-480.0,0.00014246,2]
[383858352,1757146255005,-480.0,0.00014246,2]
[383858354,1757146255015,-480.0,0.00014246,2]
[383858356,1757146255024,-480.0,0.00014246,2]
[383858358,1757146255033,-480.0,0.00014246,2]
[383858360,1757146255043,-480.0,0.00014246,2]
[383858362,1757146255052,-480.0,0.00014246,2]
[383858364,1757146255062,-515.91,0.00014246,2]
[383858366,1757146255070,-480.0,0.00014246,2]
[383858368,1757146255080,-480.0,0.00014246,2]
[383858370,1757146255090,-480.0,0.00014246,2]
[383858372,1757146255099,-480.0,0.00014246,2]
[383858373,1757146255108,-480.0,0.00014246,2]
[383858375,1757146255118,-492.33394045,0.00014246,2]
[383858377,1757146255127,-480.0,0.00014246,2]
[383858379,1757146255136,-480.0,0.00014246,2]
[383858381,1757146255145,-480.0,0.00014246,2]
[383858383,1757146255155,-480.0,0.00014246,2]
[383858385,1757146255166,-280.09,0.00014246,2]
[383858387,1757146255175,-423.96133848,0.00014246,2]
[383858389,1757146255184,-480.0,0.00014246,2]
[383858391,1757146255194,-480.0,0.00014246,2]
[383858393,1757146255203,-276.00981847,0.00014246,2]
[383858395,1757146255212,-480.0,0.00014246,2]
[383858397,1757146255222,-485.98391718,0.00014246,2]
[383858399,1757146255231,-480.0,0.00014246,2]
[383858401,1757146255240,-480.0,0.00014246,2]
[383858403,1757146255249,-151.0,0.00014246,2]
[383858404,1757146255259,-292.82371864,0.00014246,2]
[383858406,1757146255269,-480.0,0.00014246,2]
[383858408,1757146255278,-480.0,0.00014246,2]
[383858410,1757146255288,-480.0,0.00014246,2]
[383858412,1757146255297,-481.61196086,0.00014246,2]
[383858415,1757146255307,-480.0,0.00014246,2]
[383858416,1757146255317,-480.0,0.00014246,2]
[383858419,1757146255326,-480.0,0.00014246,2]
[383858420,1757146255335,-480.0,0.00014246,2]
[383858422,1757146255344,-486.93899009,0.00014246,2]
[383858424,1757146255353,-480.0,0.00014246,2]
[383858426,1757146255363,-480.0,0.00014246,2]
[383858428,1757146255372,-497.29,0.00014246,2]
[383858430,1757146255381,-480.0,0.00014246,2]
[383858432,1757146255391,-485.12050341,0.00014246,2]
[383858434,1757146255400,-483.40571759,0.00014246,2]
[383858436,1757146255410,-482.34063407,0.00014246,2]
[383858438,1757146255419,-480.0,0.00014246,2]
[383858440,1757146255428,-480.0,0.00014246,2]
[383858442,1757146255438,-480.0,0.00014246,2]
[383858444,1757146255447,-480.0,0.00014246,2]
[383858446,1757146255456,-151.0,0.00014246,2]
[383858448,1757146255465,-151.0,0.00014246,2]
[383858450,1757146255475,-151.0,0.00014246,2]
[383858452,1757146255484,-395.333293,0.00014246,2]
[383858454,1757146255494,-480.0,0.00014246,2]
[383858456,1757146255503,-395.333293,0.00014246,2]
[383858458,1757146255512,-395.333293,0.00014246,2]
[383858460,1757146255522,-395.333293,0.00014246,2]
[383858462,1757146255531,-480.0,0.00014246,2]
[383858464,1757146255539,-480.0,0.00014246,2]
[383858466,1757146255548,-480.0,0.00014246,2]
[383858468,1757146255558,-495.79059818,0.00014246,2]
[383858470,1757146255567,-480.0,0.00014246,2]
[383858472,1757146255576,-151.0,0.00014246,2]
[383858474,1757146255586,-480.0,0.00014246,2]
[383858476,1757146255595,-151.0,0.00014246,2]
[383858478,1757146255604,-151.0,0.00014246,2]
[383858480,1757146255613,-708.51,0.00014246,2]
[383858481,1757146255622,-494.09355426,0.00014246,2]
[383858484,1757146255632,-480.0,0.00014246,2]
[383858485,1757146255642,-569.76292404,0.00014246,2]
[383858487,1757146255653,-151.0,0.00014246,2]
[383858489,1757146255663,-480.0,0.00014246,2]
[383858491,1757146255672,-151.0,0.00014246,2]
[383858493,1757146255681,-480.0,0.00014246,2]
[383858495,1757146255691,-480.0,0.00014246,2]
[383858497,1757146255700,-480.0,0.00014246,2]
[383858499,1757146255709,-480.0,0.00014246,2]
[383858501,1757146255719,-538.97,0.00014246,2]
[383858503,1757146255730,-484.38,0.00014246,2]
[383858505,1757146255739,-365.58293941,0.00014246,2]
[383858507,1757146255748,-495.45141881,0.00014246,2]
[383858509,1757146255758,-480.0,0.00014246,2]
[383858511,1757146255767,-723.87,0.00014246,2]
[383858513,1757146255777,-480.0,0.00014246,2]
[383858515,1757146255786,-319.62515827,0.00014246,2]
[383858517,1757146255796,-652.0,0.00014246,2]
[383858519,1757146255805,-480.0,0.00014246,2]
[383858521,1757146255814,-402.482389,0.00014246,2]
[383858523,1757146255824,-169.31846166,0.00014246,2]
[383858525,1757146255833,-402.482389,0.00014246,2]
[383858527,1757146255847,-1295.7,0.00014246,2]
[383858529,1757146255856,-402.482389,0.00014246,2]
[383858531,1757146255865,-402.482389,0.00014246,2]
[383858533,1757146255874,-151.0,0.00014246,2]
[383858535,1757146255885,-587.62,0.00014246,2]
[383858537,1757146255894,-480.0,0.00014246,2]
[383858539,1757146255904,-480.0,0.00014246,2]
[383858541,1757146255913,-151.0,0.00014246,2]
[383858542,1757146255922,-151.0,0.00014246,2]
[383858544,1757146255933,-483.47251557,0.00014246,2]
[383858546,1757146255942,-484.22909381,0.00014246,2]
[383858548,1757146255951,-480.0,0.00014246,2]
[383858550,1757146255960,-480.0,0.00014246,2]
[383858552,1757146255969,-624.02,0.00014246,2]
[383858554,1757146255978,-480.0,0.00014246,2]
[383858556,1757146255987,-231.02744279,0.00014246,2]
[383858558,1757146255996,-480.0,0.00014246,2]
[383858560,1757146256007,-151.0,0.00014246,2]
[383858562,1757146256016,-480.0,0.00014246,2]
[383858564,1757146256025,-480.0,0.00014246,2]
[383858566,1757146256034,-480.0,0.00014246,2]
[383858568,1757146256043,-481.04001931,0.00014246,2]
[383858570,1757146256053,-480.0,0.00014246,2]
[383858572,1757146256063,-480.0,0.00014246,2]
[383858574,1757146256072,-480.0,0.00014246,2]
[383858576,1757146256082,-480.0,0.00014246,2]
[383858578,1757146256091,-151.0,0.00014246,2]
[383858580,1757146256100,-151.0,0.00014246,2]
[383858582,1757146256109,-480.0,0.00014246,2]
[383858584,1757146256119,-734.04,0.00014246,2]
[383858586,1757146256128,-480.86930627,0.00014246,2]
[383858588,1757146256138,-480.0,0.00014246,2]
[383858590,1757146256147,-480.0,0.00014246,2]
[383858592,1757146256156,-480.0,0.00014246,2]
[383858594,1757146256165,-480.0,0.00014246,2]
[383858596,1757146256174,-480.0,0.00014246,2]
[383858598,1757146256183,-480.0,0.00014246,2]
[383858600,1757146256193,-480.0,0.00014246,2]
[383858601,1757146256203,-480.0,0.00014246,2]
[383858603,1757146256213,-480.0,0.00014246,2]
[383858605,1757146256222,-151.0,0.00014246,2]
[383858607,1757146256231,-480.0,0.00014246,2]
[383858609,1757146256240,-616.46935791,0.00014246,2]
[383858611,1757146256249,-480.0,0.00014246,2]
[383858613,1757146256259,-480.0,0.00014246,2]
[383858615,1757146256268,-480.0,0.00014246,2]
[383858617,1757146256277,-946.64,0.00014246,2]
[383858619,1757146256286,-480.0,0.00014246,2]
[383858621,1757146256377,-581.16,0.00014246,2]
[383858622,1757146256392,-480.0,0.00014246,2]
[383858623,1757146256401,-480.0,0.00014246,2]
[383858624,1757146256411,-480.0,0.00014246,2]
[383858625,1757146256420,-151.0,0.00014246,2]
[383858626,1757146256430,-480.0,0.00014246,2]
[383858627,1757146256439,-480.0,0.00014246,2]
[383858628,1757146256448,-480.0,0.00014246,2]
[383858629,1757146256457,-236.86474853,0.00014246,2]
[383858631,1757146256469,-480.0,0.00014246,2]
[383858633,1757146256480,-480.0,0.00014246,2]
[383858634,1757146256489,-480.0,0.00014246,2]
[383858637,1757146256500,-480.0,0.00014246,2]
[383858639,1757146256509,-485.09647214,0.00014246,2]
[383858641,1757146256519,-480.0,0.00014246,2]
[383858642,1757146256528,-480.0,0.00014246,2]
[383858644,1757146256538,-480.0,0.00014246,2]
[383858646,1757146256547,-480.0,0.00014246,2]
[383858648,1757146256555,-480.0,0.00014246,2]
[383858650,1757146256564,-480.0,0.00014246,2]
[383858653,1757146256575,-480.0,0.00014246,2]
[383858654,1757146256584,-151.0,0.00014246,2]
[383858657,1757146256594,-480.0,0.00014246,2]
[383858659,1757146256603,-480.0,0.00014246,2]
[383858661,1757146256612,-480.0,0.00014246,2]
[383858662,1757146256621,-185.13441732,0.00014246,2]
[383858664,1757146256631,-480.0,0.00014246,2]
[383858666,1757146256640,-480.0,0.00014246,2]
[383858668,1757146256650,-480.0,0.00014246,2]
[383858670,1757146256659,-480.0,0.00014246,2]
[383858672,1757146256669,-151.0,0.00014246,2]
[383858674,1757146256678,-151.0,0.00014246,2]
[383858676,1757146256687,-480.0,0.00014246,2]
[383858678,1757146256697,-480.0,0.00014246,2]
[383858680,1757146256707,-480.0,0.00014246,2]
[383858682,1757146256716,-480.0,0.00014246,2]
[383858684,1757146256725,-480.0,0.00014246,2]
[383858686,1757146256733,-151.0,0.00014246,2]
[383858688,1757146256741,-480.0,0.00014246,2]
[383858690,1757146256750,-863.34,0.00014246,2]
[383858692,1757146256759,-480.0,0.00014246,2]
[383858694,1757146256768,-480.0,0.00014246,2]
[383858696,1757146256778,-223.17557535,0.00014246,2]
[383858698,1757146256788,-627.12,0.00014246,2]
[383858700,1757146256797,-480.0,0.00014246,2]
[383858702,1757146256807,-480.0,0.00014246,2]
[383858704,1757146256816,-480.0,0.00014246,2]
[383858706,1757146256825,-480.0,0.00014246,2]
[383858708,1757146256836,-480.0,0.00014246,2]
[383858710,1757146256848,-480.0,0.00014246,2]
[383858712,1757146256858,-151.0,0.00014246,2]
[383858714,1757146256868,-480.0,0.00014246,2]
[383858716,1757146256878,-480.0,0.00014246,2]
[383858718,1757146256887,-480.0,0.00014246,2]
[383858720,1757146256896,-156.933598,0.00014246,2]
[383858722,1757146256906,-444.04604287,0.00014246,2]
[383858724,1757146256915,-480.0,0.00014246,2]
[383858726,1757146256925,-161.556233,0.00014246,2]
[383858728,1757146256935,-480.0,0.00014246,2]
[383858730,1757146256943,-480.0,0.00014246,2]
[383858732,1757146256953,-480.0,0.00014246,2]
[383858734,1757146256962,-480.0,0.00014246,2]
[383858736,1757146256971,-480.0,0.00014246,2]
[383858738,1757146256981,-151.0,0.00014246,2]
[383858740,1757146256990,-156.328558,0.00014246,2]
[383858742,1757146256999,-480.0,0.00014246,2]
[383858744,1757146257009,-480.0,0.00014246,2]
[383858746,1757146257019,-156.328558,0.00014246,2]
[383858748,1757146257028,-480.0,0.00014246,2]
[383858750,1757146257040,-156.328558,0.00014246,2]
[383858752,1757146257049,-156.328558,0.00014246,2]
[383858754,1757146257058,-480.0,0.00014246,2]
[383858756,1757146257068,-550.95,0.00014246,2]
[383858758,1757146257077,-189.937431,0.00014246,2]
[383858760,1757146257087,-480.0,0.00014246,2]
[383858762,1757146257096,-480.0,0.00014246,2]
[383858764,1757146257105,-480.0,0.00014246,2]
[383858766,1757146257114,-480.0,0.00014246,2]
[383858768,1757146257123,-549.32,0.00014246,2]
[383858770,1757146257133,-4490.14,0.00014246,2]
[383858772,1757146257142,-480.0,0.00014246,2]
[383858774,1757146257151,-258.75297376,0.00014246,2]
[383858776,1757146257161,-230.74040021,0.00014246,2]
[383858778,1757146257171,-480.0,0.00014246,2]
[383858780,1757146257180,-847.95,0.00014246,2]
[383858782,1757146257189,-480.0,0.00014246,2]
[383858784,1757146257199,-480.0,0.00014246,2]
[383858787,1757146257208,-480.0,0.00014246,2]
[383858789,1757146257218,-482.09117241,0.00014246,2]
[383858790,1757146257227,-480.0,0.00014246,2]
[383858792,1757146257236,-531.73942943,0.00014246,2]
[383858794,1757146257245,-689.64,0.00014246,2]
[383858796,1757146257255,-2293.57,0.00014246,2]
[383858799,1757146257265,-901.03,0.00014246,2]
[383858801,1757146257275,-1956.11,0.00014246,2]
[383858803,1757146257285,-1885.91,0.00014246,2]
[383858805,1757146257295,-844.54,0.00014246,2]
[383858807,1757146257305,-480.0,0.00014246,2]
[383858809,1757146257314,-415.0622428,0.00014246,2]
[383858811,1757146257323,-151.0,0.00014246,2]
[383858813,1757146257333,-480.0,0.00014246,2]
[383858815,1757146257342,-151.0,0.00014246,2]
[383858817,1757146257351,-480.0,0.00014246,2]
[383858819,1757146257360,-480.0,0.00014246,2]
[383858821,1757146257369,-480.0,0.00014246,2]
[383858822,1757146257380,-480.0,0.00014246,2]
[383858824,1757146257389,-480.0,0.00014246,2]
[383858826,1757146257399,-480.0,0.00014246,2]
[383858828,1757146257409,-151.0,0.00014246,2]
[383858830,1757146257418,-480.0,0.00014246,2]
[383858832,1757146257427,-480.0,0.00014246,2]
[383858834,1757146257436,-151.0,0.00014246,2]
[383858837,1757146257446,-689.36,0.00014246,2]
[383858839,1757146257455,-585.17229804,0.00014246,2]
[383858840,1757146257464,-480.0,0.00014246,2]
[383858842,1757146257473,-151.0,0.00014246,2]
[383858844,1757146257483,-1990.88,0.00014246,2]
[383858847,1757146257492,-231.256817,0.00014246,2]
[383858849,1757146257502,-480.0,0.00014246,2]
[383858850,1757146257511,-480.0,0.00014246,2]
[383858853,1757146257522,-480.0,0.00014246,2]
[383858855,1757146257533,-480.0,0.00014246,2]
[383858856,1757146257543,-480.0,0.00014246,2]
[383858859,1757146257553,-480.0,0.00014246,2]
[383858860,1757146257563,-480.0,0.00014246,2]
[383858863,1757146257573,-480.0,0.00014246,2]
[383858864,1757146257582,-480.0,0.00014246,2]
[383858867,1757146257591,-1996.65,0.00014246,2]
[383858869,1757146257601,-483.09089622,0.00014246,2]
[383858871,1757146257610,-480.0,0.00014246,2]
[383858873,1757146257621,-480.0,0.00014246,2]
[383858874,1757146257630,-480.0,0.00014246,2]
[383858877,1757146257640,-480.0,0.00014246,2]
[383858879,1757146257650,-480.0,0.00014246,2]
[383858880,1757146257660,-208.98692899,0.00014246,2]
[383858882,1757146257670,-480.0,0.00014246,2]
[383858885,1757146257681,-480.0,0.00014246,2]
[383858886,1757146257690,-480.0,0.00014246,2]
[383858888,1757146257700,-151.0,0.00014246,2]
[383858890,1757146257710,-169.65169956,0.00014246,2]
[383858893,1757146257720,-2746.8,0.00014246,2]
[383858894,1757146257730,-494.34473565,0.00014246,2]
[383858896,1757146257740,-480.0,0.00014246,2]
[383858898,1757146257749,-482.28967182,0.00014246,2]
[383858900,1757146257759,-574.26,0.00014246,2]
[383858903,1757146257770,-6279.18,0.00014246,2]
[383858905,1757146257780,-480.0,0.00014246,2]
[383858907,1757146257789,-1149.57,0.00014246,2]
[383858908,1757146257799,-480.0,0.00014246,2]
[383858910,1757146257808,-1663.93,0.00014246,2]
[383858912,1757146257818,-480.0,0.00014246,2]
[383858914,1757146257827,-480.0,0.00014246,2]
[383858916,1757146257837,-480.0,0.00014246,2]
[383858918,1757146257850,-480.0,0.00014246,2]
[383858920,1757146257859,-480.0,0.00014246,2]
[383858922,1757146257868,-480.0,0.00014246,2]
[383858924,1757146257879,-480.0,0.00014246,2]
[383858926,1757146257889,-480.0,0.00014246,2]
[383858928,1757146257898,-736.39,0.00014246,2]
[383858930,1757146257906,-480.0,0.00014246,2]
[383858932,1757146257918,-480.0,0.00014246,2]
[383858934,1757146257927,-253.18989756,0.00014246,2]
[383858936,1757146257936,-480.0,0.00014246,2]
[383858938,1757146257946,-480.0,0.00014246,2]
[383858940,1757146257955,-481.77219081,0.00014246,2]
[383858942,1757146257964,-484.52643837,0.00014246,2]
[383858944,1757146257973,-480.0,0.00014246,2]
[383858946,1757146257981,-1985.52,0.00014246,2]
[383858948,1757146257991,-480.0,0.00014246,2]
[383858950,1757146257999,-603.89,0.00014246,2]
[383858952,1757146258008,-480.0,0.00014246,2]
[383858954,1757146258019,-480.0,0.00014246,2]
[383858956,1757146258028,-480.0,0.00014246,2]
[383858967,1757146258119,-480.0,0.00014246,2]
[383858970,1757146258135,-480.0,0.00014246,2]
[383858972,1757146258144,-480.0,0.00014246,2]
[383858974,1757146258154,-480.0,0.00014246,2]
[383858976,1757146258163,-480.0,0.00014246,2]
[383858978,1757146258173,-480.0,0.00014246,2]
[383858980,1757146258183,-480.0,0.00014246,2]
[383858982,1757146258192,-480.0,0.00014246,2]
[383858984,1757146258201,-480.0,0.00014246,2]
[383858986,1757146258210,-480.0,0.00014246,2]
[383858988,1757146258220,-480.0,0.00014246,2]
[383858990,1757146258229,-480.0,0.00014246,2]
[383858992,1757146258239,-737.41,0.00014246,2]
[383858994,1757146258248,-480.0,0.00014246,2]
[383858996,1757146258258,-1371.61,0.00014246,2]
[383858998,1757146258267,-929.82,0.00014246,2]
[383859000,1757146258275,-480.0,0.00014246,2]
[383859002,1757146258284,-480.0,0.00014246,2]
[383859004,1757146258293,-480.0,0.00014246,2]
[383859006,1757146258302,-151.0,0.00014246,2]
[383859008,1757146258312,-647.08,0.00014246,2]
[383859010,1757146258322,-480.0,0.00014246,2]
[383859012,1757146258331,-153.858091,0.00014246,2]
[383859014,1757146258341,-480.0,0.00014246,2]
[383859016,1757146258350,-559.93,0.00014246,2]
[383859018,1757146258359,-591.1,0.00014246,2]
[383859020,1757146258368,-480.0,0.00014246,2]
[383859022,1757146258378,-480.0,0.00014246,2]
[383859025,1757146258387,-480.0,0.00014246,2]
[383859027,1757146258397,-480.0,0.00014246,2]
[383859028,1757146258406,-575.14,0.00014246,2]
[383859030,1757146258415,-480.0,0.00014246,2]
[383859033,1757146258425,-480.0,0.00014246,2]
[383859035,1757146258434,-940.75,0.00014246,2]
[383859037,1757146258443,-480.0,0.00014246,2]
[383859038,1757146258452,-752.69,0.00014246,2]
[383859040,1757146258461,-2244.84,0.00014246,2]
[383859042,1757146258470,-650.54,0.00014246,2]
[383859044,1757146258480,-480.0,0.00014246,2]
[383859046,1757146258489,-9370.75,0.00014246,2]
[383859049,1757146258499,-1683.86,0.00014246,2]
[383859051,1757146258508,-480.0,0.00014246,2]
[383859053,1757146258517,-480.0,0.00014246,2]
[383859054,1757146258527,-480.0,0.00014246,2]
[383859057,1757146258536,-151.0,0.00014246,2]
[383859059,1757146258546,-480.0,0.00014246,2]
[383859061,1757146258554,-543.298905,0.00014246,2]
[383859063,1757146258564,-543.298905,0.00014246,2]
[383859065,1757146258573,-480.0,0.00014246,2]
[383859067,1757146258583,-543.298905,0.00014246,2]
[383859069,1757146258592,-543.298905,0.00014246,2]
[383859070,1757146258601,-480.0,0.00014246,2]
[383859072,1757146258610,-1483.04,0.00014246,2]
[383859074,1757146258619,-480.0,0.00014246,2]
[383859076,1757146258628,-480.0,0.00014246,2]
[383859078,1757146258639,-480.0,0.00014246,2]
[383859080,1757146258649,-151.0,0.00014246,2]
[383859082,1757146258658,-151.0,0.00014246,2]
[383859084,1757146258667,-815.17,0.00014246,2]
[383859086,1757146258676,-318.879953,0.00014246,2]
[383859088,1757146258685,-6620.36,0.00014246,2]
[383859090,1757146258695,-318.879953,0.00014246,2]
[383859092,1757146258705,-480.0,0.00014246,2]
[383859094,1757146258714,-318.879953,0.00014246,2]
[383859096,1757146258724,-516.70476006,0.00014246,2]
[383859098,1757146258733,-480.0,0.00014246,2]
[383859100,1757146258743,-318.879953,0.00014246,2]
[383859102,1757146258752,-480.0,0.00014246,2]
[383859104,1757146258761,-743.595002,0.00014246,2]
[383859106,1757146258771,-1143.02,0.00014246,2]
[383859108,1757146258780,-743.595002,0.00014246,2]
[383859110,1757146258789,-151.0,0.00014246,2]
[383859112,1757146258798,-638.8,0.00014246,2]
[383859114,1757146258807,-167.17069,0.00014246,2]
[383859116,1757146258816,-743.595002,0.00014246,2]
[383859118,1757146258826,-480.0,0.00014246,2]
[383859120,1757146258836,-1707.48,0.00014246,2]
[383859122,1757146258847,-167.17069,0.00014246,2]
[383859124,1757146258857,-743.595002,0.00014246,2]
[383859126,1757146258866,-480.0,0.00014246,2]
[383859128,1757146258876,-167.17069,0.00014246,2]
[383859130,1757146258886,-151.0,0.00014246,2]
[383859132,1757146258895,-500.0,0.00014273,2]
[383859134,1757146258905,-500.0,0.00014273,2]
[383859137,1757146258915,-500.0,0.00014273,2]
[383859138,1757146258924,-500.0,0.00014273,2]
[383859141,1757146258934,-501.06146603,0.00014273,2]
[383859143,1757146258944,-500.0,0.00014273,2]
[383859145,1757146258953,-500.0,0.00014273,2]
[383859146,1757146258962,-500.0,0.00014273,2]
[383859148,1757146258971,-500.0,0.00014273,2]
[383859151,1757146258981,-555.12339621,0.00014273,2]
[383859153,1757146258991,-500.0,0.00014273,2]
[383859155,1757146259000,-500.48989097,0.00014273,2]
[383859156,1757146259009,-415.48425378,0.00014273,2]
[383859158,1757146259018,-500.0,0.00014273,2]
[383859160,1757146259028,-500.0,0.00014273,2]
[383859162,1757146259037,-500.0,0.00014273,2]
[383859164,1757146259046,-500.0,0.00014273,2]
[383859166,1757146259056,-500.0,0.00014273,2]
[383859169,1757146259066,-501.21831197,0.00014273,2]
[383859171,1757146259075,-500.87580389,0.00014273,2]
[383859172,1757146259084,-500.0,0.00014273,2]
[383859175,1757146259094,-588.75671945,0.00014273,2]
[383859177,1757146259104,-500.0,0.00014273,2]
[383859179,1757146259113,-500.0,0.00014273,2]
[383859181,1757146259122,-500.0,0.00014273,2]
[383859183,1757146259132,-500.0,0.00014273,2]
[383859185,1757146259141,-500.69844372,0.00014273,2]
[383859187,1757146259150,-500.0,0.00014273,2]
[383859189,1757146259159,-500.19224193,0.00014273,2]
[383859191,1757146259168,-500.0,0.00014273,2]
[383859193,1757146259178,-500.0,0.00014273,2]
[383859195,1757146259187,-500.0,0.00014273,2]
[383859197,1757146259197,-151.0,0.00014273,2]
[383859199,1757146259206,-151.0,0.00014273,2]
[383859201,1757146259215,-257.319223,0.00014277,2]
[383859203,1757146259224,-151.978713,0.00014277,2]
[383859205,1757146259233,-260.026,0.00014289,2]
[383859207,1757146259243,-1200.0,0.00014498,2]
[383859209,1757146259252,-420.0,0.00014501,2]
[383859211,1757146259262,-480.0,0.0001452,2]
[383859213,1757146259271,-480.0,0.0001452,2]
[383859215,1757146259280,-480.0,0.0001452,2]
[383859217,1757146259290,-480.0,0.0001452,2]
[383859219,1757146259299,-480.0,0.0001452,2]
[383859221,1757146259309,-515.91,0.0001452,2]
[383859223,1757146259318,-480.0,0.0001452,2]
[383859224,1757146259327,-491.25713811,0.0001452,2]
[383859225,1757146259337,-480.0,0.0001452,2]
[383859226,1757146259346,-480.0,0.0001452,2]
[383859227,1757146259355,-549.62856115,0.0001452,2]
[383859228,1757146259365,-480.0,0.0001452,2]
[383859229,1757146259374,-480.0,0.0001452,2]
[383859230,1757146259383,-480.0,0.0001452,2]
[383859231,1757146259393,-480.0,0.0001452,2]
[383859232,1757146259402,-526.11560716,0.0001452,2]
[383859233,1757146259411,-483.69683165,0.0001452,2]
[383859234,1757146259421,-483.24615572,0.0001452,2]
[383859235,1757146259430,-480.0,0.0001452,2]
[383859236,1757146259439,-480.0,0.0001452,2]
[383859237,1757146259448,-480.0,0.0001452,2]
[383859238,1757146259457,-489.15698194,0.0001452,2]
[383859239,1757146259466,-480.0,0.0001452,2]
[383859241,1757146259475,-495.93,0.0001452,2]
[383859242,1757146259485,-480.0,0.0001452,2]
[383859244,1757146259494,-497.29,0.0001452,2]
[383859246,1757146259503,-480.0,0.0001452,2]
[383859248,1757146259513,-480.0,0.0001452,2]
[383859250,1757146259522,-512.5,0.0001452,2]